fUSD/lending_fUSD_20240505
["ID","MTS","AMOUNT","RATE_DAILY","PERIOD"]
[326458886,1714939842415,-151.0,0.00013,2]
[326458887,1714939842425,-177.806004,0.00013,2]
[326458888,1714939842434,-151.0,0.00013,2]
[326458889,1714939842444,-151.0,0.00013,2]
[326458890,1714939842454,-173.87888,0.00013,2]
[326458891,1714939842463,-151.0,0.00013,2]
[326458892,1714939842472,-173.87888,0.00013,2]
[326458893,1714939842481,-151.0,0.00013,2]
[326458894,1714939842491,-1000.0,0.00013003,2]
[326458895,1714939842501,-2000.0,0.00013029,2]
[326458896,1714939842510,-200.0,0.00013029,2]
[326458897,1714939842519,-2000.0,0.00013029,2]
[326458898,1714939842529,-200.0,0.00013029,2]
[326458899,1714939842538,-354.17,0.00013151,2]
[326458900,1714939842547,-295.14,0.00013151,2]
[326458901,1714939842556,-245.95,0.00013151,2]
[326458902,1714939842564,-204.96,0.00013151,2]
[326458903,1714939842573,-170.8,0.00013151,2]
[326458904,1714939842583,-854.0,0.00013151,2]
[326458906,1714939842591,-2000.0,0.00013159,2]
[326458907,1714939842600,-200.0,0.00013159,2]
[326458908,1714939842609,-2000.0,0.00013159,2]
[326458909,1714939842618,-200.0,0.00013159,2]
[326458910,1714939842627,-10126.0,0.0001323,2]
[326458911,1714939842637,-2000.0,0.00013291,2]
[326458913,1714939842646,-200.0,0.00013291,2]
[326458915,1714939842655,-2000.0,0.00013291,2]
[326458916,1714939842663,-200.0,0.00013291,2]
[326458917,1714939842672,-2000.0,0.00013424,2]
[326458918,1714939842682,-200.0,0.00013424,2]
[326458919,1714939842691,-2000.0,0.00013424,2]
[326458920,1714939842700,-200.0,0.00013424,2]
[326458922,1714939842709,-418.26,0.00013425,2]
[326458924,1714939842718,-159.9,0.00013425,2]
[326458925,1714939842727,-162.58,0.00013568,2]
[326458927,1714939842736,-155.1481899,0.000136,2]
[326458929,1714939842745,-151.0,0.00013699,2]
[326458931,1714939842755,-12278.56,0.00013699,2]
[326458933,1714939842764,-500.0,0.00013699,2]
[326458935,1714939842772,-2751.0,0.00013699,2]
[326458937,1714939842781,-200.0,0.00013699,2]
[326458938,1714939842790,-198.0,0.00013752,2]
[326458940,1714939842799,-281.94220496,0.00014,2]
[326458941,1714939842807,-1037.30256325,0.00014,2]
[326458942,1714939842817,-192.0,0.00014,2]
[326458943,1714939842826,-63011.0,0.00014,2]
[326458944,1714939842835,-150.97,0.00014,2]
[326458945,1714939842843,-150.97,0.00014,2]
[326458946,1714939842852,-150.97,0.00014,2]
[326458947,1714939842861,-150.97,0.00014,2]
[326458948,1714939842870,-150.97,0.00014,2]
[326458949,1714939842879,-150.97,0.00014,2]
[326458950,1714939842888,-150.97,0.00014,2]
[326458951,1714939842897,-150.97,0.00014,2]
[326458952,1714939842907,-150.97,0.00014,2]
[326458953,1714939842917,-150.97,0.00014,2]
[326458954,1714939842926,-150.97,0.00014,2]
[326458955,1714939842935,-150.97,0.00014,2]
[326458956,1714939842943,-150.97,0.00014,2]
[326458957,1714939842954,-150.97,0.00014,2]
[326458958,1714939842963,-150.97,0.00014,2]
[326458959,1714939842972,-150.97,0.00014,2]
[326458960,1714939842981,-150.97,0.00014,2]
[326458961,1714939842990,-150.97,0.00014,2]
[326458962,1714939842999,-150.97,0.00014,2]
[326458963,1714939843008,-150.97,0.00014,2]
[326458964,1714939843017,-150.97,0.00014,2]
[326458965,1714939843028,-150.97,0.00014,2]
[326458966,1714939843037,-150.97,0.00014,2]
[326458967,1714939843046,-150.97,0.00014,2]
[326458968,1714939843055,-150.97,0.00014,2]
[326458969,1714939843065,-150.97,0.00014,2]
[326458970,1714939843074,-150.97,0.00014,2]
[326458971,1714939843083,-150.97,0.00014,2]
[326458972,1714939843092,-150.97,0.00014,2]
[326458973,1714939843102,-150.97,0.00014,2]
[326458974,1714939843112,-150.97,0.00014,2]
[326458975,1714939843123,-150.97,0.00014,2]
[326458976,1714939843133,-150.97,0.00014,2]
[326458977,1714939843142,-150.97,0.00014,2]
[326458978,1714939843151,-150.97,0.00014,2]
[326458979,1714939843160,-150.97,0.00014,2]
[326458980,1714939843170,-150.97,0.00014,2]
[326458981,1714939843179,-150.97,0.00014,2]
[326458982,1714939843189,-150.97,0.00014,2]
[326458983,1714939843204,-150.97,0.00014,2]
[326458984,1714939843213,-150.97,0.00014,2]
[326458985,1714939843222,-150.97,0.00014,2]
[326458986,1714939843231,-150.97,0.00014,2]
[326458987,1714939843242,-150.97,0.00014,2]
[326458988,1714939843252,-150.97,0.00014,2]
[326458990,1714939843261,-150.97,0.00014,2]
[326458992,1714939843272,-150.97,0.00014,2]
[326458993,1714939843281,-150.31,0.00014098,2]
[326458994,1714939843291,-310.686012,0.00014247,2]
[326458995,1714939843301,-16459.59,0.00014335,2]
[326458996,1714939843311,-17695.0,0.000146,3]
[326458997,1714939843321,-165.91,0.00014908,2]
[326458998,1714939843330,-258.60550978,0.00015,2]
[326458999,1714939843340,-385.6,0.00015,2]
[326459000,1714939843349,-155.00408411,0.00015,2]
[326459001,1714939843358,-618.02616279,0.00015,2]
[326459002,1714939843367,-271.27603223,0.00015,2]
[326459004,1714939843376,-300.0,0.00015068,2]
[326459005,1714939843386,-310.686012,0.00015068,2]
[326459006,1714939843395,-17695.0,0.000153,5]
[326459007,1714939843404,-285.50016337,0.00015406,2]
[326459008,1714939843413,-167.0,0.00015831,2]
[326459009,1714939843423,-310.686012,0.0001589,2]
[326459010,1714939843432,-551.86154387,0.00016,2]
[326459011,1714939843442,-1749.0834379,0.00016,2]
[326459012,1714939843451,-150.31,0.00016112,2]
[326459013,1714939843460,-4748.14,0.00016116,2]
[326459014,1714939843469,-167.0,0.00016354,2]
[326459015,1714939843478,-300.0,0.00016438,2]
[326459016,1714939843487,-1225.21326046,0.000165,2]
[326459017,1714939843497,-310.686012,0.00016712,2]
[326459018,1714939843506,-175.46,0.00016712,2]
[326459019,1714939843515,-167.0,0.00016876,2]
[326459020,1714939843524,-178.28774648,0.000169,2]
[326459021,1714939843533,-165.92,0.00017102,2]
[326459022,1714939843542,-167.0,0.00017399,2]
[326459023,1714939843551,-310.686012,0.00017534,2]
[326459024,1714939843561,-767.89281125,0.0001788,2]
[326459025,1714939843570,-767.89281119,0.0001788,2]
[326459026,1714939843580,-767.89281119,0.0001788,2]
[326459027,1714939843590,-767.89281119,0.0001788,2]
[326459028,1714939843599,-4821.93163524,0.0001788,2]
[326459029,1714939843608,-4821.93163521,0.0001788,2]
[326459030,1714939843618,-4821.93163521,0.0001788,2]
[326459031,1714939843628,-4821.93163521,0.0001788,2]
[326459032,1714939843637,-3000.0,0.000179,2]
[326459033,1714939843647,-167.0,0.00017921,2]
[326459034,1714939843658,-450.0,0.00018,3]
[326459035,1714939843667,-285.50016337,0.00018011,2]
[326459036,1714939843677,-150.31,0.00018126,2]
[326459037,1714939843686,-4821.93163521,0.00018147,2]
[326459038,1714939843696,-310.686012,0.00018356,2]
[326459039,1714939843706,-767.89281119,0.00018361,2]
[326459040,1714939843715,-167.0,0.00018444,2]
[326459041,1714939843725,-3806.72572362,0.00019,5]
[326459042,1714939843734,-194.00301164,0.00019,2]
[326459043,1714939843743,-500.0,0.00019178,2]
[326459044,1714939843752,-500.0,0.00019178,2]
[326459045,1714939843761,-500.0,0.00019178,2]
[326459046,1714939843770,-500.0,0.00019178,2]
[326459047,1714939843779,-500.0,0.00019178,2]
[326459048,1714939843788,-438.89403689,0.00019178,2]
[326459049,1714939843798,-154.13,0.00019178,2]
[326459050,1714939843807,-155.27,0.00019178,2]
[326459051,1714939843816,-167.5,0.00019178,2]
[326459052,1714939843826,-151.0,0.00019178,2]
[326459053,1714939843835,-3873.95558732,0.000192,2]
[326459054,1714939843845,-1122.3,0.000192,2]
[326459055,1714939843855,-963.89,0.000192,2]
[326459056,1714939843864,-577.81,0.000192,2]
[326459057,1714939843874,-150.5,0.00019606,15]
[326459058,1714939843883,-1136.0,0.00019606,15]
[326459059,1714939843896,-150.5,0.00019616,15]
[326459060,1714939843906,-1136.0,0.00019616,15]
[326459061,1714939843916,-150.5,0.00019626,15]
[326459062,1714939843926,-1136.0,0.00019626,15]
[326459063,1714939843936,-150.5,0.00019636,15]
[326459064,1714939843946,-1178.0,0.00019636,15]
[326459065,1714939843956,-150.5,0.00019646,15]
[326459066,1714939843967,-1178.0,0.00019646,15]
[326459067,1714939843977,-150.5,0.00019656,15]
[326459068,1714939843987,-1178.0,0.00019656,15]
[326459069,1714939843995,-209.0,0.00019666,15]
[326459070,1714939844005,-209.0,0.00019676,15]
[326459071,1714939844014,-209.0,0.00019686,15]
[326459072,1714939844023,-281.74,0.00019706,15]
[326459073,1714939844033,-150.5,0.00019716,15]
[326459074,1714939844043,-153.63575401,0.000199,2]
[326459075,1714939844052,-153.63575398,0.000199,2]
[326459076,1714939844062,-1635.81259084,0.0002,2]
[326459077,1714939844071,-500.0,0.0002,3]
[326459078,1714939844080,-1259.16438446,0.0002,2]
[326459079,1714939844091,-155.0,0.0002,2]
[326459080,1714939844101,-358.19784561,0.0002,2]
[326459081,1714939844111,-860.33884772,0.0002,2]
[326459082,1714939844121,-5174.91787188,0.0002,2]
[326459083,1714939844130,-6226.02936575,0.0002,2]
[326459084,1714939844139,-626.72109604,0.0002,2]
[326459085,1714939844148,-155.0,0.0002,2]
[326459086,1714939844158,-155.0,0.0002,2]
[326459087,1714939844167,-175.93183996,0.0002,2]
[326459088,1714939844176,-4821.93163521,0.00020298,2]
[326459089,1714939844185,-938.54879161,0.00020344,2]
[326459090,1714939844195,-4963.74871088,0.00020344,2]
[326459091,1714939844207,-767.89281119,0.00020468,2]
[326459092,1714939844216,-285.50016337,0.00020617,2]
[326459093,1714939844225,-155.0,0.000209,2]
[326459094,1714939844233,-716.58965222,0.00021,2]
[326459095,1714939844244,-13369.0,0.0002169,2]
[326459096,1714939844255,-963.89,0.000218,2]
[326459097,1714939844264,-577.81,0.000218,2]
[326459098,1714939844273,-6751.18378893,0.000219,2]
[326459099,1714939844284,-1122.3,0.000219,2]
[326459100,1714939844293,-151.0,0.000219,2]
[326459101,1714939844302,-151.0,0.000219,2]
[326459102,1714939844311,-151.0,0.000219,2]
[326459103,1714939844320,-250.083424,0.000219,2]
[326459104,1714939844329,-171.372256,0.000219,2]
[326459105,1714939844338,-171.372256,0.000219,2]
[326459106,1714939844347,-151.0,0.000219,2]
[326459107,1714939844356,-151.0,0.000219,2]
[326459108,1714939844365,-151.0,0.000219,2]
[326459109,1714939844374,-151.0,0.000219,2]
[326459110,1714939844383,-1681.92,0.00021918,2]
[326459111,1714939844392,-250.0,0.00021918,2]
[326459112,1714939844401,-250.0,0.00021918,2]
[326459113,1714939844410,-150.0,0.00021918,2]
[326459114,1714939844419,-150.0,0.00021918,2]
[326459115,1714939844428,-150.0,0.00021918,2]
[326459116,1714939844438,-550.0,0.00022,3]
[326459117,1714939844447,-785.91687423,0.00022,2]
[326459118,1714939844457,-2282.0,0.000222,2]
[326459119,1714939844466,-4821.93163521,0.00022448,2]
[326459120,1714939844475,-12736.57642091,0.000225,2]
[326459121,1714939844484,-151.0,0.000225,7]
[326459122,1714939844493,-151.0,0.000225,7]
[326459123,1714939844503,-151.0,0.000225,7]
[326459124,1714939844513,-151.0,0.000225,7]
[326459125,1714939844522,-285.04402,0.000225,7]
[326459126,1714939844531,-285.04402,0.000225,7]
[326459127,1714939844540,-151.0,0.000225,7]
[326459128,1714939844549,-151.0,0.000225,7]
[326459129,1714939844559,-151.0,0.000225,7]
[326459130,1714939844568,-151.0,0.000225,7]
[326459131,1714939844577,-153.63575398,0.00022503,2]
[326459132,1714939844586,-151.0,0.00022557,7]
[326459133,1714939844595,-151.0,0.00022557,7]
[326459134,1714939844604,-450.0,0.00022557,7]
[326459135,1714939844613,-151.0,0.00022557,7]
[326459136,1714939844622,-450.0,0.00022557,7]
[326459137,1714939844631,-151.0,0.00022557,7]
[326459138,1714939844640,-151.0,0.00022557,7]
[326459139,1714939844649,-151.0,0.00022557,7]
[326459140,1714939844659,-151.0,0.00022557,7]
[326459141,1714939844668,-151.0,0.00022557,7]
[326459142,1714939844676,-151.0,0.00022557,7]
[326459143,1714939844686,-151.0,0.00022557,7]
[326459144,1714939844695,-151.0,0.00022557,7]
[326459145,1714939844704,-151.0,0.00022557,7]
[326459146,1714939844713,-264.29468,0.00022557,7]
[326459147,1714939844722,-151.0,0.00022557,7]
[326459148,1714939844734,-264.29468,0.00022557,7]
[326459149,1714939844743,-151.0,0.00022557,7]
[326459150,1714939844754,-209.071652,0.00022557,7]
[326459151,1714939844763,-151.0,0.00022557,7]
[326459152,1714939844773,-209.071652,0.00022557,7]
[326459153,1714939844782,-151.0,0.00022557,7]
[326459154,1714939844791,-210.36138,0.00022557,7]
[326459155,1714939844801,-767.89281119,0.00022576,2]
[326459156,1714939844810,-3000.0,0.000229,2]
[326459157,1714939844822,-285.50016337,0.00023222,2]
[326459158,1714939844833,-151.0,0.00023362,7]
[326459159,1714939844842,-151.0,0.00023362,7]
[326459160,1714939844853,-151.0,0.00023362,7]
[326459161,1714939844861,-151.0,0.00023362,7]
[326459162,1714939844870,-151.0,0.00023362,7]
[326459163,1714939844879,-151.0,0.00023362,7]
[326459164,1714939844888,-151.0,0.00023362,7]
[326459165,1714939844897,-151.0,0.00023362,7]
[326459166,1714939844906,-254.516148,0.00023362,7]
[326459167,1714939844915,-151.0,0.00023362,7]
[326459168,1714939844924,-151.0,0.00023362,7]
[326459169,1714939844933,-2000.93957158,0.000234,2]
[326459170,1714939844944,-1000.0,0.000236,2]
[326459171,1714939844953,-1304.0,0.000236,2]
[326459172,1714939844963,-600.0,0.00024,3]
[326459173,1714939844974,-431.95467805,0.00024,2]
[326459174,1714939844984,-151.0,0.00024,7]
[326459175,1714939844995,-1000.0,0.000241,2]
[326459176,1714939845006,-413.24293095,0.0002421,2]
[326459177,1714939845015,-4821.93163521,0.00024599,2]
[326459178,1714939845025,-963.89,0.000246,2]
[326459179,1714939845036,-577.81,0.000246,2]
[326459180,1714939845046,-1000.0,0.000246,2]
[326459181,1714939845055,-418.26,0.00024658,2]
[326459182,1714939845066,-767.89281119,0.00024684,2]
[326459183,1714939845076,-2608.38966738,0.00025,2]
[326459184,1714939845086,-155.0,0.00025,2]
[326459185,1714939845096,-471.49840129,0.00025,2]
[326459186,1714939845105,-2218.26332743,0.00025,2]
[326459187,1714939845114,-1122.3,0.00025,2]
[326459188,1714939845123,-4221.59588355,0.00025,2]
[326459189,1714939845132,-198.95368324,0.00025,2]
[326459190,1714939845141,-155.0,0.00025,2]
[326459191,1714939845150,-151.0,0.0002508,7]
[326459192,1714939845160,-213.375649,0.0002508,7]
[326459193,1714939845169,-151.0,0.0002508,7]
[326459194,1714939845179,-151.0,0.0002508,7]
[326459195,1714939845188,-1000.0,0.000251,2]
[326459196,1714939845199,-3140.93808075,0.0002562,2]
[326459197,1714939845211,-285.50016337,0.00025828,2]
[326459198,1714939845221,-207.39,0.0002589,2]
[326459199,1714939845232,-650.0,0.00026,3]
[326459200,1714939845243,-151.0,0.00026117,7]
[326459201,1714939845253,-159.17705713,0.00026189,2]
[326459202,1714939845262,-156.0,0.000263,20]
[326459203,1714939845272,-577.81,0.000264,2]
[326459204,1714939845282,-1000.0,0.000265,2]
[326459205,1714939845292,-159.17705713,0.00026587,2]
[326459206,1714939845302,-237.77515042,0.0002674,2]
[326459207,1714939845311,-4821.93163521,0.00026749,2]
[326459208,1714939845320,-767.89281119,0.00026792,2]
[326459209,1714939845329,-151.0,0.00026799,7]
[326459210,1714939845338,-151.0,0.00026799,7]
[326459211,1714939845347,-157.57856048,0.00026909,2]
[326459212,1714939845356,-258.45191137,0.00027,2]
[326459213,1714939845365,-169.89572366,0.00027,2]
[326459214,1714939845374,-963.89,0.00027,2]
[326459215,1714939845384,-154.6529785,0.00027033,2]
[326459216,1714939845393,-176.55,0.00027068,15]
[326459217,1714939845402,-151.35100351,0.00027092,2]
[326459218,1714939845411,-1122.3,0.000271,2]
[326459219,1714939845420,-1000.0,0.000271,2]
[326459220,1714939845429,-150.0,0.00027124,2]
[326459221,1714939845438,-150.0,0.00027127,2]
[326459222,1714939845447,-150.0,0.00027132,2]
[326459223,1714939845456,-150.0,0.00027133,2]
[326459224,1714939845465,-150.0,0.00027154,2]
[326459225,1714939845474,-150.0,0.0002718,2]
[326459226,1714939845489,-157.93592244,0.00027201,2]
[326459227,1714939845500,-150.0,0.00027208,2]
[326459228,1714939845509,-150.0,0.00027208,2]
[326459229,1714939845519,-150.0,0.00027209,2]
[326459230,1714939845528,-150.0,0.00027244,2]
[326459231,1714939845538,-150.0,0.00027256,2]
[326459232,1714939845547,-150.0,0.00027316,2]
[326459233,1714939845557,-150.0,0.00027316,2]
[326459235,1714939845566,-150.0,0.00027317,2]
[326459236,1714939845576,-168.02355184,0.00027318,2]
[326459237,1714939845585,-153.63575398,0.00027366,2]
[326459238,1714939845594,-237.77515042,0.00027366,2]
[326459239,1714939845604,-150.0,0.00027386,2]
[326459240,1714939845613,-237.77515042,0.0002739,2]
[326459241,1714939845623,-151.0,0.00027397,7]
[326459242,1714939845632,-151.0,0.00027397,7]
[326459243,1714939845642,-150.23,0.00027397,2]
[326459244,1714939845651,-5350.95,0.00027397,2]
[326459245,1714939845661,-150.0,0.00027428,2]
[326459246,1714939845670,-150.0,0.00027465,2]
[326459247,1714939845680,-159.9,0.00027466,2]
[326459248,1714939845689,-150.0,0.00027478,2]
[326459249,1714939845699,-156.0,0.0002748,22]
[326459250,1714939845708,-911.93,0.00027481,2]
[326459251,1714939845718,-911.93,0.00027481,2]
[326459252,1714939845727,-911.93,0.00027481,2]
[326459253,1714939845736,-577.81,0.000275,2]
[326459254,1714939845745,-150.0,0.00027521,2]
[326459255,1714939845755,-155.95646156,0.00027549,2]
[326459256,1714939845765,-150.0,0.00027556,2]
[326459257,1714939845774,-300.0,0.00027576,2]
[326459258,1714939845784,-150.0,0.0002758,2]
[326459259,1714939845793,-150.0,0.00027587,2]
[326459260,1714939845803,-150.0,0.00027602,2]
[326459261,1714939845813,-150.0,0.00027612,2]
[326459262,1714939845822,-152.67353958,0.00027619,2]
[326459263,1714939845831,-150.0,0.00027648,2]
[326459264,1714939845841,-150.0,0.00027689,2]
[326459265,1714939845850,-1006.0,0.000277,2]
[326459266,1714939845859,-150.0,0.00027723,2]
[326459267,1714939845868,-10000.0,0.00027726,5]
[326459268,1714939845878,-297.02822393,0.00027726,5]
[326459269,1714939845887,-10000.0,0.00027726,5]
[326459270,1714939845897,-150.0,0.00027729,2]
[326459271,1714939845907,-155.95646156,0.0002775,2]
[326459272,1714939845916,-2293.0,0.00027754,2]
[326459273,1714939845926,-5741.0,0.00027754,2]
[326459274,1714939845935,-288.0,0.00027754,2]
[326459275,1714939845944,-5903.0,0.00027754,2]
[326459276,1714939845954,-37775.0,0.00027754,2]
[326459277,1714939845963,-1058.47,0.00027754,2]
[326459278,1714939845974,-335.50042478,0.00027755,7]
[326459279,1714939845983,-179.87579351,0.00027755,2]
[326459280,1714939845994,-159.17705713,0.00027774,2]
[326459281,1714939846004,-1000.0,0.00027776,10]
[326459282,1714939846013,-200.0,0.00027776,7]
[326459283,1714939846022,-300.0,0.000278,2]
[326459284,1714939846032,-150.0,0.00027803,2]
[326459285,1714939846044,-300.0,0.00027804,2]
[326459286,1714939846053,-150.0,0.00027828,2]
[326459287,1714939846063,-150.0,0.00027834,2]
[326459288,1714939846072,-150.0,0.00027858,2]
[326459289,1714939846081,-150.0,0.0002786,2]
[326459290,1714939846091,-212.0,0.0002788,2]
[326459291,1714939846100,-150.0,0.00027883,2]
[326459292,1714939846110,-150.0,0.00027884,2]
[326459293,1714939846120,-150.0,0.00027885,2]
[326459294,1714939846129,-300.0,0.00027894,2]
[326459295,1714939846139,-10000.0,0.000279,2]
[326459296,1714939846150,-235.42213431,0.000279,2]
[326459297,1714939846159,-235.42213431,0.000279,2]
[326459299,1714939846428,-235.42213431,0.000279,2]
[326459300,1714939846438,-235.42213431,0.000279,2]
[326459301,1714939846447,-235.42213431,0.000279,2]
[326459302,1714939846456,-235.42213431,0.000279,2]
[326459303,1714939846465,-235.42213431,0.000279,2]
[326459304,1714939846475,-235.42213431,0.000279,2]
[326459305,1714939846484,-235.42213431,0.000279,2]
[326459306,1714939846493,-235.42213431,0.000279,2]
[326459307,1714939846503,-900.0,0.000279,10]
[326459308,1714939846512,-2263.184006,0.000279,2]
[326459309,1714939846522,-404.90420457,0.000279,2]
[326459310,1714939846531,-938.54879161,0.000279,2]
[326459311,1714939846541,-4963.74871088,0.000279,2]
[326459312,1714939846550,-3000.0,0.000279,2]
[326459313,1714939846559,-150.0,0.00027921,2]
[326459314,1714939846568,-200.0,0.00027925,2]
[326459315,1714939846577,-1000.0,0.00027925,10]
[326459316,1714939846586,-500.0,0.00027925,2]
[326459317,1714939846597,-150.0,0.00027929,2]
[326459318,1714939846606,-209.0,0.0002793,15]
[326459319,1714939846615,-209.0,0.0002794,15]
[326459320,1714939846624,-300.0,0.00027942,2]
[326459321,1714939846634,-151.0,0.00027945,7]
[326459322,1714939846643,-2500.0,0.00027945,7]
[326459323,1714939846652,-2500.0,0.00027945,7]
[326459324,1714939846662,-2500.0,0.00027945,7]
[326459325,1714939846670,-2500.0,0.00027945,7]
[326459326,1714939846679,-2500.0,0.00027945,7]
[326459327,1714939846688,-2500.0,0.00027945,7]
[326459328,1714939846697,-2500.0,0.00027945,7]
[326459329,1714939846706,-2500.0,0.00027945,7]
[326459330,1714939846715,-2500.0,0.00027945,7]
[326459331,1714939846725,-2500.0,0.00027945,7]
[326459332,1714939846734,-2500.0,0.00027945,7]
[326459333,1714939846743,-2500.0,0.00027945,7]
[326459334,1714939846753,-2500.0,0.00027945,7]
[326459335,1714939846762,-2500.0,0.00027945,7]
[326459336,1714939846772,-1049.03803223,0.00027945,7]
[326459337,1714939846781,-151.0,0.00027945,7]
[326459338,1714939846790,-1287.677464,0.00027945,7]
[326459339,1714939846799,-1287.677464,0.00027945,7]
[326459340,1714939846808,-202.028961,0.00027945,7]
[326459341,1714939846818,-202.028961,0.00027945,7]
[326459342,1714939846827,-177.806004,0.00027945,7]
[326459343,1714939846836,-177.806004,0.00027945,7]
[326459344,1714939846846,-151.0,0.00027945,7]
[326459345,1714939846856,-151.0,0.00027945,7]
[326459346,1714939846866,-173.87888,0.00027945,7]
[326459347,1714939846876,-151.0,0.00027945,7]
[326459348,1714939846885,-173.87888,0.00027945,7]
[326459349,1714939846894,-151.0,0.00027945,7]
[326459350,1714939846916,-209.0,0.0002795,15]
[326459351,1714939846926,-300.0,0.00027951,2]
[326459352,1714939846936,-150.0,0.00027952,2]
[326459353,1714939846946,-200.0,0.00027954,7]
[326459354,1714939846956,-150.0,0.00027956,2]
[326459355,1714939846967,-150.0,0.00027956,2]
[326459356,1714939846977,-237.77515042,0.00027976,2]
[326459357,1714939846987,-5816.2686924,0.00027981,2]
[326459358,1714939846997,-150.0,0.00027982,2]
[326459359,1714939847008,-150.0,0.00027993,2]
[326459360,1714939847018,-74026.48354397,0.00027995,3]
[326459361,1714939847028,-151.0,0.00027995,7]
[326459362,1714939847038,-151.0,0.00027995,7]
[326459363,1714939847049,-151.0,0.00027995,7]
[326459364,1714939847059,-151.0,0.00027995,7]
[326459365,1714939847069,-151.0,0.00027995,7]
[326459366,1714939847080,-151.0,0.00027995,7]
[326459367,1714939847090,-151.0,0.00027995,7]
[326459368,1714939847101,-151.0,0.00027995,7]
[326459369,1714939847112,-151.0,0.00027995,7]
[326459370,1714939847122,-151.0,0.00027995,7]
[326459371,1714939847132,-844.718222,0.00027995,7]
[326459372,1714939847142,-844.718222,0.00027995,7]
[326459373,1714939847152,-151.0,0.00027995,7]
[326459374,1714939847162,-150.0,0.00027999,10]
[326459375,1714939847173,-150.0,0.00027999,10]
[326459376,1714939847183,-2382231.86413007,0.00028,2]
[326459377,1714939847193,-700.0,0.00028,3]
[326459378,1714939847206,-151.0,0.00028,7]
[326459379,1714939847216,-151.0,0.00028,7]
[326459380,1714939847226,-151.0,0.00028,7]
[326459381,1714939847237,-151.0,0.00028,7]
[326459382,1714939847247,-151.0,0.00028,7]
[326459383,1714939847258,-151.0,0.00028,7]
[326459384,1714939847268,-151.0,0.00028,7]
[326459385,1714939847280,-151.0,0.00028,7]
[326459386,1714939847290,-151.0,0.00028,7]
[326459387,1714939847300,-151.0,0.00028,7]
[326459388,1714939847310,-151.0,0.00028,7]
[326459389,1714939847320,-171.372256,0.00028,7]
[326459390,1714939847330,-171.372256,0.00028,7]
[326459391,1714939847340,-151.0,0.00028,7]
[326459392,1714939847349,-151.0,0.00028,7]
[326459393,1714939847359,-151.0,0.00028,7]
[326459394,1714939847371,-151.0,0.00028,7]
[326459395,1714939847382,-151.0,0.00028,7]
[326459396,1714939847392,-151.0,0.00028,7]
[326459397,1714939847402,-151.0,0.00028,7]
[326459398,1714939847413,-151.0,0.00028,7]
[326459399,1714939847423,-151.0,0.00028,7]
[326459400,1714939847433,-285.04402,0.00028,7]
[326459401,1714939847443,-285.04402,0.00028,7]
[326459402,1714939847453,-284.53328,0.00028,7]